[Event "CCT Chessable Masters Playoffs 2025"]
[Site "Online"]
[Date "2025.02.18"]
[Round "51"]
[White "Grischuk, Alexander"]
[Black "Duda, Jan-Krzysztof"]
[Result "1/2-1/2"]
[Annotator "TA"]
[ECO "B12"]
[WhiteElo "2687"]
[BlackElo "2739"]
[PlyCount "136"]
[EventDate "2025.02.13"]
[EventType "k.o."]
[EventCountry "NET"]
[SourceTitle "playchess.com"]
[Source "ChessBase"]
[SourceQuality "1"]
[TimeControl "600"]

{[%evp 9,136,3,14,1,28,-25,-27,-25,-33,-23,-21,-24,-25,-33,-25,-62,-60,-64,-14,-29,0,0,15,10,0,-18,-22,-42,0,-33,-11,-29,70,0,0,0,0,-27,0,0,10,0,0,0,38,32,56,47,56,47,58,56,49,68,67,65,62,54,85,100,114,108,107,90,96,89,124,120,177,179,178,158,157,114,122,115,118,47,45,48,62,22,63,19,30,21,6,1,17,0,8,8,8,8,8,8,231,232,1008,981,957,936,962,851,999,891,1102,584,992,1000,29982,0,0,0,0,0,0,0,0,0,0,0,0,0,0,0,0,0,0]} 1. e4 {[%emt 0:00:00]} c6 {[%emt 0:00:01]} 2. d4 {[%emt 0:00:01]} d5 {[%emt 0:00:00]} 3. e5 {[%emt 0:00:01]} Bf5 {[%emt 0:00:02]} 4. h4 {[%emt 0:00:00]} h5 {[%emt 0:00:02]} 5. Bd3 {[%emt 0:00:02]} Bxd3 {[%emt 0:00:01]} 6. Qxd3 {[%emt 0:00:00][%cal Oe5e6] B12: Caro-Kann: Advance Variation.} Qa5+ $1 {[%emt 0:00:01][%mdl 4] [#] is recently more successful than 6...e6.} 7. b4 {[%emt 0:00:01]} Qxb4+ $11 {[%emt 0:00:05]} 8. Nd2 {[%emt 0:00:04][%cal Oe5e6] Black has an edge.} e6 {[%emt 0:00:01]} 9. Rb1 {[%emt 0:00:05]} Qe7 {[%emt 0:00:01]} 10. c4 {[%emt 0:00:00]} Nh6 {[%emt 0:00:11]} 11. Ne2 {[%emt 0:00:06]} Nf5 {[%emt 0:00:29]} 12. Nf3 {[%emt 0:00:02]} dxc4 {[%emt 0:00:21]} 13. Qxc4 {[%emt 0:00:01]} Qc7 $146 {[%emt 0:00:10]} ({Better is} 13... Qd7 $15) ({Predecessor:} 13... b5 14. Qc2 Qd7 15. O-O Be7 16. Bg5 Na6 17. Bxe7 Nxe7 18. Ng5 Nc7 19. Rfc1 Ncd5 {½-½ Culum,S (2446)-Burovic,R (2427) Sarajevo Agentlocator rapid 2024 (4)}) 14. Qb3 {[%emt 0:01:34]} b5 {[%emt 0:01:43]} 15. Ng3 {[%emt 0:00:24]} g6 {[%emt 0:00:20]} 16. Bg5 {[%emt 0:00:31]} Nd7 {[%emt 0:00:03]} 17. Nxf5 {[%emt 0:00:35]} gxf5 {[%emt 0:00:00]} 18. Qc2 {[%emt 0:00:05]} Qa5+ {[%emt 0:00:30]} 19. Bd2 {[%emt 0:00:08]} Qa6 {[%emt 0:00:02]} 20. O-O {[%emt 0:00:06]} Be7 {[%emt 0:00:01]} (20... Rc8 $11) 21. Bg5 {[%emt 0:00:10]} (21. Rfc1 $14) 21... Rc8 {[%emt 0:00:04]} 22. Rfc1 {[%emt 0:00:46][%cal Od4d5]} Ba3 {[%emt 0:00:28]} 23. Rd1 {[%emt 0:00:01]} (23. d5 $5) 23... Qb7 {[%emt 0:00:02]} 24. Rb3 {[%emt 0:00:05]} Be7 {[%emt 0:00:02]} 25. Bxe7 {[%emt 0:00:47]} Kxe7 {[%emt 0:00:00]} 26. Rc1 {[%emt 0:00:05]} c5 {[%emt 0:00:19]} 27. Qd2 {[%emt 0:00:39]} c4 {[%emt 0:01:14]} 28. Qb4+ {[%emt 0:00:02]} Ke8 {[%emt 0:00:02] [#]} 29. Rxc4 {[%emt 0:00:24]} Rxc4 {[%emt 0:00:05]} 30. Qxc4 {[%emt 0:00:01]} (30. Qxb5 Qxb5 31. Rxb5 Ra4 $19) 30... bxc4 {[%emt 0:00:09][%csl Oa7,Oc4,Oh5] Black has weak pawns} 31. Rxb7 $14 {[%emt 0:00:01][%mdl 4096] Endgame KRN-KRN} Ke7 {[%emt 0:00:00]} 32. Rc7 {[%emt 0:00:08] White is much more active.} Rb8 {[%emt 0:00:04]} 33. Rxc4 {[%emt 0:00:02]} Rb1+ {[%emt 0:00:35]} 34. Kh2 {[%emt 0:00:01]} Rb2 {[%emt 0:00:01]} 35. Ra4 {[%emt 0:00:01]} Rb7 {[%emt 0:00:01]} 36. Nd2 {[%emt 0:00:11]} Nb6 {[%emt 0:00:02]} 37. Ra5 {[%emt 0:00:02]} Rd7 {[%emt 0:00:25]} 38. Nb3 {[%emt 0:00:02]} f4 {[%emt 0:00:01] [#]} (38... Rc7 $16 {might work better.} 39. g3 Nd5) 39. g3 $1 $18 {[%emt 0:00:24]} Nd5 {[%emt 0:00:02]} 40. Nc5 {[%emt 0:00:05]} Rc7 {[%emt 0:00:02]} 41. Kg2 {[%emt 0:00:05]} fxg3 {[%emt 0:00:05]} 42. Kxg3 {[%emt 0:00:02]} Kf8 {[%emt 0:00:04]} 43. a3 {[%emt 0:00:07]} (43. Ne4 $16) 43... Kg7 $14 {[%emt 0:00:02]} 44. Kf3 {[%emt 0:00:04]} Kg6 {[%emt 0:00:03]} 45. Rb5 {[%emt 0:00:03]} Rc8 {[%emt 0:00:30]} 46. a4 {[%emt 0:00:01]} Ne7 $1 {[%emt 0:00:07]} 47. Rb7 {[%emt 0:00:14]} Nf5 {[%emt 0:00:02][%csl LRd4,LRh4]} 48. Ke4 {[%emt 0:00:02] Nd3 poses a challenge} Rd8 {[%emt 0:00:04]} 49. Nd7 {[%emt 0:00:27]} (49. Rxa7 Rxd4+ 50. Kf3 Nxh4+ 51. Ke2 Rc4) 49... a5 {[%emt 0:00:05]} 50. d5 {[%emt 0:00:20]} exd5+ {[%emt 0:00:00]} 51. Kxd5 {[%emt 0:00:00]} Nxh4 {[%emt 0:00:00]} 52. Ke4 {[%emt 0:00:00]} Nf5 $2 {[%emt 0:00:21]} (52... Rc8 $1 $11 {and Black is okay.}) 53. Rb6+ $18 {[%emt 0:00:02]} Kg5 $2 {[%emt 0:00:01]} (53... Kg7 54. Nf6 Nh4 55. Nxh5+ Kh7 56. Nf6+ Kg7) 54. f4+ {[%emt 0:00:02]} Kh4 {[%emt 0:00:05]} 55. Kxf5 {[%emt 0:00:01]} Rxd7 {[%emt 0:00:01] KR-KR} 56. Kf6 {[%emt 0:00:04]} Kg4 {[%emt 0:00:07]} 57. f5 {[%emt 0:00:01] aiming for Rd6.} Rd4 {[%emt 0:00:02]} 58. Kxf7 {[%emt 0:00:03]} Kxf5 {[%emt 0:00:02]} 59. e6 {[%emt 0:00:01]} Rxa4 {[%emt 0:00:03]} 60. Rb5+ $2 {[%emt 0:00:03]} (60. e7 {mates} Re4 61. Rf6+ (61. e8=B h4 $11) (61. e8=Q Rxe8 62. Kxe8 h4 $11) 61... Kg4 62. Re6 (62. e8=B Rf4 $15) (62. e8=Q Rxe8 63. Kxe8 h4 $11) 62... Rxe6 63. Kxe6 h4 64. e8=Q (64. e8=R h3 $11) 64... h3 65. Qg6+ Kf4 66. Qf5+ Ke3 67. Qxh3+ (67. Qxa5 Kf4 68. Qf5+ Ke3 69. Qxh3+ Kd4 70. Qh4+ Kd3 71. Kd5 Kd2 72. Qd4+ Ke2) 67... Ke4 68. Qf5+ Ke3 69. Qxa5) 60... Kg4 $11 {[%emt 0:00:02] The position is equal.} 61. Re5 {[%emt 0:00:05] White threatens e7 and mate.} Rb4 {[%emt 0:00:05]} 62. e7 {[%emt 0:00:01]} Rb8 $1 {[%emt 0:00:05]} 63. e8=Q {[%emt 0:00:17]} (63. e8=B Rb7+ 64. Kf6 h4 $14) 63... Rxe8 {[%emt 0:00:01]} 64. Kxe8 {[%emt 0:00:01]} (64. Rxe8 $5 h4 $8 65. Rg8+ Kf3 66. Rf8 $11) 64... h4 {[%emt 0:00:00]} 65. Rxa5 {[%emt 0:00:01]} h3 {[%emt 0:00:00]} 66. Ra1 {[%emt 0:00:01]} h2 {[%emt 0:00:02]} 67. Rh1 {[%emt 0:00:00]} Kg3 {[%emt 0:00:00]} 68. Rxh2 {[%emt 0:00:00]} Kxh2 {[%emt 0:00:00] Black defended with fortune.   Weighted Error Value: White=0.27 (precise) /Black=0.58  Loses game:     	---       	Black=1      Mistake:       	White=3     	Black=4      Inaccurate:     	White=5     	Black=9      OK:         	White=21    	Black=22     Best:        	White=6     	Black=5      Strong:       	---       	Black=2} 1/2-1/2

[Event "CCT Chessable Masters Playoffs 2025"]
[Site "Online"]
[Date "2025.02.19"]
[Round "52"]
[White "Caruana, Fabiano"]
[Black "Esipenko, Andrey"]
[Result "0-1"]
[Annotator "TA"]
[ECO "C43"]
[WhiteElo "2803"]
[BlackElo "2695"]
[PlyCount "136"]
[EventDate "2025.02.13"]
[EventType "k.o."]
[EventCountry "NET"]
[SourceTitle "playchess.com"]
[Source "ChessBase"]
[SourceQuality "1"]
[TimeControl "600"]

{[%evp 9,136,16,17,26,29,20,18,18,25,29,22,4,4,13,34,0,0,0,0,0,6,-26,-25,-20,-13,-43,-50,-74,-70,-72,-50,-61,-44,-49,-46,-65,-70,-55,-53,-88,-75,-95,-69,-68,-73,-76,-67,-75,-68,-79,-56,-85,-84,-98,-110,-120,-115,-120,-77,-82,0,0,43,43,41,46,47,59,82,0,0,0,0,0,103,0,0,0,0,-99,-94,-95,-102,-106,-85,-93,-106,-132,0,0,0,-379,-329,-654,-646,-665,-664,-641,-638,-745,-713,-877,-871,-6111,-5933,-2708,-1739,-1032,-1237,-2123,-1797,-1343,-1209,-29982,-29983,-29985,-29986,-29987,-29988,-29988,-29987,-29987,-29988,-29989,-29990,-29990,-29991,-29991,-29992]} 1. e4 {[%emt 0:00:00]} e5 {[%emt 0:00:02]} 2. Nf3 {[%emt 0:00:01]} Nf6 {[%emt 0:00:01]} 3. d4 {[%emt 0:00:05]} Nxe4 {[%emt 0:00:01]} 4. Bd3 {[%emt 0:00:01]} d5 {[%emt 0:00:01]} 5. dxe5 {[%emt 0:00:00]} Nd7 {[%emt 0:00:00]} 6. O-O {[%emt 0:00:06] C43: Petroff Defence: 3 d4.} Be7 {[%emt 0:01:22]} 7. c4 {[%emt 0:00:40]} Nb6 $146 {[%emt 0:00:04]} (7... c6 8. cxd5 cxd5 9. Bb5 O-O 10. Qxd5 Ndc5 11. Qxd8 Rxd8 12. Be3 Nd3 13. Bd4 Bg4 14. Bxd3 Bxf3 15. Bxe4 Bxe4 {½-½ Ishemguzhin,I (2376)-Shnyrev,V (2331) WS MN/027 email 2007}) 8. cxd5 {[%emt 0:00:32] The position is equal.} Qxd5 {[%emt 0:00:10]} 9. Qc2 {[%emt 0:00:57]} Nc5 {[%emt 0:00:09]} 10. Bb5+ {[%emt 0:00:01]} c6 {[%emt 0:00:03]} 11. Nc3 {[%emt 0:00:09]} Qe6 {[%emt 0:00:02] A sharp opening} 12. Be2 {[%emt 0:00:01]} (12. b4 $5 Ncd7 13. Bd3 $11) 12... Qg6 {[%emt 0:00:03]} 13. Qxg6 {[%emt 0:00:12]} hxg6 {[%emt 0:00:00]} 14. Be3 {[%emt 0:00:02]} Bg4 {[%emt 0:00:17]} 15. b4 {[%emt 0:01:26]} Ncd7 {[%emt 0:00:41]} 16. b5 {[%emt 0:00:21]} Bxf3 {[%emt 0:00:12]} 17. gxf3 {[%emt 0:00:24]} Nxe5 {[%emt 0:00:05]} 18. bxc6 {[%emt 0:00:00]} bxc6 {[%emt 0:00:28][%csl Oa2,Of2,Of3,Oh2] White has weak pawns} 19. Rac1 {[%emt 0:00:02]} g5 {[%emt 0:01:49]} 20. f4 {[%emt 0:00:27]} Nec4 {[%emt 0:00:04]} 21. Bxb6 {[%emt 0:00:39]} Nxb6 {[%emt 0:00:03]} 22. Bf3 {[%emt 0:00:00]} Rc8 {[%emt 0:00:11]} (22... gxf4 $2 23. Bxc6+ Kf8 24. Bxa8 $18) 23. fxg5 {[%emt 0:00:04]} Bxg5 {[%emt 0:00:09]} 24. Rfe1+ {[%emt 0:00:00]} Kf8 {[%emt 0:00:03]} 25. Rcd1 {[%emt 0:00:05]} Bf4 {[%emt 0:00:07]} 26. h3 {[%emt 0:00:07]} g6 {[%emt 0:00:09]} (26... Rxh3 27. Bg4 Rxc3 (27... Bh2+ 28. Kh1 $16) 28. Bxc8) 27. Kg2 {[%emt 0:00:03]} Rc7 {[%emt 0:00:17]} 28. a4 {[%emt 0:00:10]} Bg5 {[%emt 0:00:15]} 29. a5 {[%emt 0:00:07]} Nd7 {[%emt 0:00:03]} 30. Ne4 {[%emt 0:00:11]} Be7 {[%emt 0:00:06]} 31. Nd6 {[%emt 0:00:02]} Rh4 {[%emt 0:00:14]} 32. Re4 {[%emt 0:00:58]} Rxe4 {[%emt 0:00:09]} 33. Nxe4 {[%emt 0:00:00]} Bb4 {[%emt 0:00:05]} 34. a6 {[%emt 0:00:02]} c5 {[%emt 0:00:09]} (34... Ne5 $17 {Hoping for ...Nxf3.} 35. Rd8+ Ke7) 35. Nd6 $1 $11 {[%emt 0:00:02]} Ne5 {[%emt 0:00:58]} (35... Nb8 $5) 36. Nb5 {[%emt 0:00:02]} Re7 {[%emt 0:00:03]} 37. Bb7 {[%emt 0:00:01]} c4 {[%emt 0:00:06]} 38. Nxa7 {[%emt 0:00:02]} Bc5 $1 {[%emt 0:00:00] [#]} 39. Rd8+ {[%emt 0:00:32]} (39. Nc8 $1 $16 {[%cal Rc8e7]} Rc7 40. Nd6 (40. a7 $2 Bxa7 41. Rd8+ Kg7 $19)) 39... Kg7 $1 {[%emt 0:00:02][%cal Oc4c3]} 40. Nb5 {[%emt 0:00:02]} Nd3 {[%emt 0:00:04]} 41. Rc8 {[%emt 0:00:01]} Bb6 {[%emt 0:00:12]} (41... Bxf2 $11 42. Nc3 (42. Rxc4 Re2 $11) 42... Ba7) 42. Rc6 {[%emt 0:00:11]} (42. a7 Bxa7 (42... Rxb7 $2 43. a8=Q $18) 43. Bf3 Bc5 $17 (43... Nxf2 44. Nxa7 Nd3 45. Nb5 $16) (43... Bxf2 44. Rxc4 Bb6 45. Re4 $17)) (42. Rxc4 $16 {Rc6 is the strong threat.} Re2 43. a7 Bxa7 44. Nxa7) 42... Bxf2 {[%emt 0:00:07]} 43. Rxc4 {[%emt 0:00:01]} Re2 {[%emt 0:00:04]} 44. Re4 {[%emt 0:00:16]} (44. Nc3 $11 {keeps the balance.} Rc2 45. Be4 Bb6+ 46. Kf3) 44... Rb2 $17 {[%emt 0:00:03]} 45. Nc3 {[%emt 0:00:24]} Ba7+ {[%emt 0:00:15]} 46. Ne2 {[%emt 0:00:02]} f5 {[%emt 0:00:03] Black has more active pieces.} (46... Nc5 {simplifies} 47. Re8 Nxb7 48. axb7 Rxb7 49. Re4 Rb2) 47. Re8 {[%emt 0:00:03]} Kf7 {[%emt 0:00:03]} 48. Bc6 {[%emt 0:00:00] [#]} Nb4 {[%emt 0:00:04]} (48... Bb6 $1 $17 49. Kf3 Ba7) 49. Bb5 $11 {[%emt 0:00:02]} Nd5 {[%emt 0:00:01]} 50. Bc6 {[%emt 0:00:02][%mdl 8192] White is now going downhill.} (50. Ra8 $11 {and White is okay.} Bc5 51. Bc4) 50... Ne7 $19 {[%emt 0:00:02]} 51. Kf1 $2 {[%emt 0:00:07]} (51. Rxe7+ Kxe7 52. Kf1) 51... Nxc6 {[%emt 0:00:01]} 52. Rc8 {[%emt 0:00:00]} Rb6 {[%emt 0:00:01]} 53. Rc7+ {[%emt 0:00:01]} Kf6 {[%emt 0:00:00]} 54. Nc3 {[%emt 0:00:01]} Rxa6 {[%emt 0:00:00]} 55. Nd5+ {[%emt 0:00:00]} Ke5 {[%emt 0:00:01]} 56. Ne7 {[%emt 0:00:01]} Ra1+ {[%emt 0:00:00]} 57. Ke2 {[%emt 0:00:01]} Nxe7 {[%emt 0:00:00]} 58. Rxe7+ {[%emt 0:00:00][%mdl 4096] Endgame KRB-KR} Kf4 {[%emt 0:00:01]} 59. Rb7 {[%emt 0:00:00]} g5 {[%emt 0:00:00]} 60. Kd3 {[%emt 0:00:01]} Kg3 {[%emt 0:00:01][%cal Of5f4] ( -> ...f4!)} 61. Rb4 {[%emt 0:00:00]} f4 {[%emt 0:00:01] Black mates.} 62. Rb3 {[%emt 0:00:00]} f3 {[%emt 0:00:00]} 63. Ke4 {[%emt 0:00:00]} Re1+ {[%emt 0:00:01]} 64. Kf5 {[%emt 0:00:01]} Kg2 {[%emt 0:00:00]} 65. Kg4 {[%emt 0:00:02]} f2 {[%emt 0:00:00]} 66. Rg3+ {[%emt 0:00:00]} Kh2 {[%emt 0:00:00]} 67. Rf3 {[%emt 0:00:00]} f1=Q {[%emt 0:00:01]} 68. Rxf1 {[%emt 0:00:03]} Rxf1 {[%emt 0:00:00] Weighted Error Value: White=0.54/Black=0.20 (precise)   Loses game:     	White=1     	---        Mistake:       	White=4     	Black=3      Inaccurate:     	White=5     	Black=2      OK:         	White=14    	Black=17     Best:        	White=5     	Black=7      Strong:       	White=1     	Black=2} 0-1

[Event "CCT Chessable Masters Playoffs 2025"]
[Site "Online"]
[Date "2025.02.19"]
[Round "52"]
[White "Wei, Yi"]
[Black "Duda, Jan-Krzysztof"]
[Result "1-0"]
[Annotator "TA"]
[ECO "C48"]
[WhiteElo "2755"]
[BlackElo "2739"]
[PlyCount "129"]
[EventDate "2025.02.13"]
[EventType "k.o."]
[EventCountry "NET"]
[SourceTitle "playchess.com"]
[Source "ChessBase"]
[SourceQuality "1"]
[TimeControl "600"]

{[%evp 11,129,9,13,0,25,6,20,20,14,22,12,14,21,8,11,0,4,0,0,6,26,26,18,18,36,39,45,0,29,0,0,-8,18,13,12,12,8,0,27,-58,-70,-64,-15,-53,-55,-153,-93,-78,-88,-72,0,0,0,0,0,0,0,-87,0,-83,214,273,232,-85,272,267,253,250,239,228,239,232,208,220,361,358,354,348,346,339,330,329,478,468,577,586,517,471,471,470,470,464,454,437,641,627,775,759,876,756,592,490,485,458,5931,5373,29974,29976,29961,29962,29966,29968,29962,29962,29968,29961,29983,29984,29986,29987]} 1. e4 {[%emt 0:00:00]} e5 {[%emt 0:00:01]} 2. Nf3 {[%emt 0:00:01]} Nc6 {[%emt 0:00:00]} 3. Bb5 {[%emt 0:00:01]} Nf6 {[%emt 0:00:02]} 4. d3 {[%emt 0:00:02]} Bc5 {[%emt 0:00:02]} 5. Nc3 {[%emt 0:00:00]} d6 {[%emt 0:00:13]} 6. Bg5 {[%emt 0:00:07]} h6 {[%emt 0:00:03]} 7. Bh4 {[%emt 0:00:01] C48: Four Knights: 4 Bb5, replies other than 4...Bb4.} Bb4 {[%emt 0:01:10]} 8. h3 $146 {[%emt 0:00:42]} ({Predecessor:} 8. a3 Bxc3+ 9. bxc3 a6 10. Bxc6+ bxc6 11. Nd2 Qe7 12. Qe2 Qe6 13. Nc4 Nd7 14. Ne3 Nf8 {½-½ Chigaev,M (2639)-Goryachkina,A (2602) RUS-ch 74th Ufa 2021 (7)}) 8... a6 {[%emt 0:00:06]} 9. Bxc6+ {[%emt 0:00:45] The position is equal.} bxc6 {[%emt 0:00:00]} 10. O-O {[%emt 0:00:01]} Bxc3 {[%emt 0:00:08]} 11. bxc3 {[%emt 0:00:00]} Qe7 {[%emt 0:00:03]} 12. Nd2 {[%emt 0:00:17]} O-O {[%emt 0:00:15] The position is symmetric and equal} 13. Nc4 {[%emt 0:00:10]} Be6 {[%emt 0:00:29]} 14. Ne3 {[%emt 0:00:03]} g5 {[%emt 0:00:03]} 15. Bg3 {[%emt 0:00:00]} Rab8 {[%emt 0:00:03]} 16. c4 {[%emt 0:00:14]} Rb2 {[%emt 0:00:09]} 17. h4 {[%emt 0:00:35]} Rfb8 {[%emt 0:00:14]} 18. hxg5 {[%emt 0:00:23]} hxg5 {[%emt 0:00:00]} 19. Qe2 {[%emt 0:00:40]} c5 {[%emt 0:00:13]} 20. Rfc1 {[%emt 0:00:18]} Qf8 {[%emt 0:00:18]} 21. Kf1 {[%emt 0:00:07][%cal Bg1f1,Bf1e1,Be1d2][%mdl 32]} Qh6 {[%emt 0:00:08][%cal Rh6h1]} 22. Ke1 {[%emt 0:00:01]} Nh5 {[%emt 0:00:31]} 23. Kd2 {[%emt 0:00:02]} Nf4 {[%emt 0:00:01]} 24. Qf3 {[%emt 0:00:28]} (24. Rh1 $2 Qxh1 25. Rxh1 Nxe2 26. Kxe2 Bd7 $19 (26... Rxa2 $2 27. Rc1 $19)) 24... Qh5 {[%emt 0:00:06]} 25. Rh1 {[%emt 0:00:10]} (25. Qxh5 $11 Nxh5 26. Rh1) 25... Qxf3 $15 {[%emt 0:00:01]} 26. gxf3 {[%emt 0:00:00]} Kg7 {[%emt 0:00:31]} (26... Ng6 $1 $15) 27. Rag1 {[%emt 0:00:44]} Ng6 {[%emt 0:00:15] Prevents Bxf4} (27... Rxa2 $6 28. Bxf4 exf4 29. Nd5 $16) 28. Nf5+ {[%emt 0:00:17]} (28. a3 $15) 28... Kf6 {[%emt 0:00:10]} (28... Bxf5 $142 $1 29. exf5 Ne7) 29. Ne3 $17 {[%emt 0:00:01]} Rxa2 {[%emt 0:00:29]} 30. Rh5 {[%emt 0:00:02][%cal Oh5g5]} Nf4 {[%emt 0:00:15]} (30... Rab2 $1 $17 31. Rxg5 Rb1 (31... Kxg5 32. Bxe5+ Kh6 33. Rh1+ Kg5 34. f4+ Nxf4 35. Rg1+ Kh6 36. Bxf4+ Kh7 37. Rh1+ Kg6 38. Rg1+ Kh7 39. Ra1 $11) 32. Rxb1 Rxb1) 31. Rxg5 $1 $11 {[%emt 0:00:16]} Kxg5 {[%emt 0:00:39]} 32. Bxf4+ {[%emt 0:00:01]} Kxf4 {[%emt 0:00:14]} 33. Rg3 $1 {[%emt 0:00:35][%cal Re3g2]} Bg4 $1 {[%emt 0:00:01]} 34. Rxg4+ {[%emt 0:00:51]} Kxf3 {[%emt 0:00:01][%mdl 4096] Endgame KRR-KRN} 35. Rg7 {[%emt 0:00:03]} (35. Rg5 $11 {keeps the balance.} Kxf2 36. Ng4+ Kg3 (36... Kf3 37. Nh2+ Kf2 38. Ng4+ Kg1 39. Nxe5+ Kh1 40. Rh5+ Kg1 41. Rg5+ Kf2 42. Rf5+ Kg1 43. Rg5+ $11) 37. Nxe5+ Kf2 38. Rf5+ Kg2 39. Rg5+ Kh1 40. Rh5+ Kg1 41. Rg5+ Kh1) 35... Rf8 $2 {[%emt 0:00:08][%mdl 8192] [#]} (35... Kxf2 $17 {keeps the pressure on. White must now prevent ...Rf8.} 36. Rxf7+ Kg3) 36. Nd1 $1 $18 {[%emt 0:00:04]} f5 {[%emt 0:00:30] [#]} 37. Rg3+ $1 {[%emt 0:00:01]} Kf4 {[%emt 0:00:02]} 38. Nc3 {[%emt 0:00:01][%cal Rc3e2]} fxe4 {[%emt 0:00:12]} 39. Nxa2 {[%emt 0:00:03]} exd3 {[%emt 0:00:03]} 40. cxd3 {[%emt 0:00:06] KRN-KR} e4 {[%emt 0:00:16]} 41. Nc3 {[%emt 0:00:02]} exd3 {[%emt 0:00:06]} 42. Kxd3 {[%emt 0:00:03] and Nd5+ would now be decisive} Rh8 {[%emt 0:00:15]} (42... c6 $142 43. Ne2+ Ke5 44. Re3+ Kf6) 43. Nd5+ {[%emt 0:00:03]} Kf5 {[%emt 0:00:02]} 44. Rf3+ {[%emt 0:00:02]} Ke5 {[%emt 0:00:08]} 45. Re3+ {[%emt 0:00:05]} Kf5 {[%emt 0:00:01]} 46. Nxc7 {[%emt 0:00:01]} a5 {[%emt 0:00:00]} (46... Rh1 $142 47. Rf3+ (47. Nxa6 Rd1+ 48. Ke2 Rc1 $18) 47... Ke5 48. Re3+ (48. Nxa6 Rh7 $18) 48... Kf5) 47. Nb5 {[%emt 0:00:01]} Rd8 {[%emt 0:00:03] [#]} 48. Re8 $1 {[%emt 0:00:02][%mdl 512]} Rd7 {[%emt 0:00:04]} 49. Nc3 {[%emt 0:00:04] Wards off d5} Rb7 {[%emt 0:00:05]} 50. Ra8 {[%emt 0:00:06]} Rb2 {[%emt 0:00:01]} 51. f3 {[%emt 0:00:10]} (51. Rxa5 Rxf2 52. Nb5 Ke5 $18) 51... Rf2 {[%emt 0:00:03]} 52. Ke3 {[%emt 0:00:00]} (52. Rxa5 Rxf3+ 53. Kd2 Ke5 $18) 52... Rc2 {[%emt 0:00:01]} (52... Rb2 $142 53. Rxa5 Rb3) 53. Ne4 {[%emt 0:00:02]} Ke6 {[%emt 0:00:02]} 54. Ra6 {[%emt 0:00:07]} Rxc4 {[%emt 0:00:01]} 55. Rxd6+ {[%emt 0:00:01]} Ke7 {[%emt 0:00:02]} 56. Rc6 {[%emt 0:00:02]} a4 {[%emt 0:00:02]} 57. Ra6 {[%emt 0:00:02]} ({Resist} 57. Rxc5 Rb4 58. Rc7+ Ke6) ({Inferior is} 57. Nxc5 a3 $11) 57... Kd7 {[%emt 0:00:07]} (57... Rb4 $142 58. Ra7+ (58. Nxc5 Rc4 $18) 58... Ke6 59. Nxc5+ Kf5 60. Rxa4 Rb2) 58. f4 {[%emt 0:00:01][%cal Bf3f4,Bf4f5,Bf5f6][%mdl 32] Threatening mate with f5.} Kc7 {[%emt 0:00:03]} 59. f5 {[%emt 0:00:00] White mates.} Rc1 {[%emt 0:00:09]} 60. Rxa4 {[%emt 0:00:04]} Rf1 {[%emt 0:00:00]} 61. f6 {[%emt 0:00:01]} Kc6 {[%emt 0:00:03]} 62. Ra5 {[%emt 0:00:02]} Re1+ {[%emt 0:00:02]} 63. Kf4 {[%emt 0:00:01]} Kd7 {[%emt 0:00:05]} 64. Rxc5 {[%emt 0:00:02]} Ke8 {[%emt 0:00:04]} 65. Kf5 {[%emt 0:00:02] Weighted Error Value: White=0.13 (very precise) /Black=0.51  Loses game:     	---       	Black=2      Mistake:       	White=3     	Black=7      Inaccurate:     	White=3     	Black=5      OK:         	White=19    	Black=15     Best:        	White=5     	Black=2      Strong:       	White=4     	Black=1      Brilliant:      	White=1     	---} 1-0